bitfinex/quotes_SOLUSD_20250930
["timestamp","ask_amount","ask_price","bid_price","bid_amount"]
[1759261734524,0.2,208.27,208.26,33.92]
[1759261734732,0.2,208.27,208.26,36.50312928]
[1759261735629,0.2,208.27,208.26,33.92]
[1759261737129,0.2,208.27,208.26,36.50312928]
[1759261737329,0.2,208.27,208.26,33.92]
[1759261738128,0.2,208.27,208.26,38.72169019]
[1759261739141,0.2,208.27,208.26,39.00601333]
[1759261739350,0.2,208.27,208.26,39.70601333]
[1759261739529,0.2,208.27,208.26,67.73160734]
[1759261740151,0.2,208.27,208.26,67.03160734]
[1759261740331,0.2,208.27,208.24,1.92173725]
[1759261740530,0.2,208.27,208.25,54.72]
[1759261741340,0.2,208.27,208.25,59.52189489]
[1759261742353,0.2,208.27,208.26,0.28432314]
[1759261742931,0.2,208.27,208.26,0.98432314]
[1759261743332,0.2,208.27,208.26,5.78601333]
[1759261744648,0.2,208.27,208.26,19.38160734]
[1759261745152,0.2,208.27,208.26,21.30325226]
[1759261746456,0.2,208.28,208.26,21.30325226]
[1759261746644,0.2,208.3,208.29,34.67991715]
[1759261746835,0.2,208.3,208.29,147.69991715]
[1759261747046,0.2,208.3,208.29,148.39991715]
[1759261748042,0.2,208.3,208.29,153.20091575]
[1759261749738,0.2,208.3,208.29,132.40091575]
[1759261750667,0.2,208.3,208.29,134.32228376]
[1759261751469,0.2,208.3,208.29,155.12228376]
[1759261754860,0.2,208.33,208.32,34.67991715]
[1759261755155,0.2,208.33,208.32,68.57991715]
[1759261755359,0.2,208.33,208.32,69.27991715]
[1759261755557,0.2,208.33,208.32,71.20091606]
[1759261755864,0.2,208.33,208.32,76.00122327]
[1759261757462,0.4896,208.33,208.32,75.30122327]
[1759261757642,0.4896,208.33,208.32,41.40122327]
[1759261757845,1.1596,208.33,208.32,73.38022436]
[1759261758356,0.4896,208.33,208.32,73.38022436]
[1759261758939,0.4896,208.33,208.32,74.06022436]
[1759261759141,0.4896,208.33,208.32,73.38022436]
[1759261759761,0.4896,208.33,208.32,74.06022436]
[1759261759963,0.4896,208.33,208.32,88.49022436]
[1759261760751,0.4896,208.33,208.32,90.41103878]
[1759261760955,0.2,208.38,208.36,13.87991715]
[1759261761270,0.2,208.38,208.37,47.77991715]
[1759261761449,0.87,208.38,208.37,47.77991715]
[1759261761651,0.87,208.38,208.37,62.52734527]
[1759261761967,0.87,208.38,208.37,67.32650061]
[1759261764664,0.87,208.38,208.37,104.74650061]
[1759261765367,0.87,208.38,208.37,86.35175126]
[1759261766858,0.87,208.38,208.37,164.76215126]
[1759261767680,0.87,208.38,208.37,164.47782812]
[1759261768969,0.87,208.38,208.37,130.57782812]
[1759261769168,0.87,208.38,208.37,37.42]
[1759261769371,5.66892504,208.38,208.37,71.32]
[1759261771170,5.66892504,208.38,208.37,37.42]
[1759261771375,5.66892504,208.38,208.37,71.32]
[1759261771873,7.32141187,208.38,208.37,71.32]
[1759261772677,5.66892504,208.38,208.37,71.32]
[1759261773483,0.87,208.38,208.37,71.32]
[1759261774168,5.66892504,208.38,208.37,71.32]
[1759261774754,0.87,208.38,208.37,71.32]
[1759261775172,5.66892504,208.38,208.37,71.32]
[1759261777380,5.98542504,208.38,208.37,71.32]
[1759261777783,6.00542504,208.38,208.37,71.32]
[1759261778759,6.00542504,208.38,208.37,37.42]
[1759261779075,6.00542504,208.38,208.37,71.32]
[1759261783379,1.2065,208.38,208.37,71.32]
[1759261783564,0.5165,208.38,208.37,71.32]
[1759261784386,1.2065,208.38,208.37,71.32]
[1759261785082,0.5165,208.38,208.37,71.32]
[1759261785586,0.5165,208.38,208.37,72.02]
[1759261785883,0.5165,208.38,208.37,76.81915534]
[1759261786276,0.5165,208.38,208.37,77.10347848]
[1759261786584,0.5165,208.38,208.37,37.42]
[1759261786780,0.5165,208.38,208.37,71.32]
[1759261787689,0.5165,208.38,208.37,76.81915534]
[1759261789588,0.5165,208.38,208.37,76.11915534]
[1759261790289,5.68805583,208.42,208.37,76.11915534]
[1759261790290,0.2,208.42,208.37,76.81915534]
[1759261790470,0.2,208.42,208.41,13.59559401]
[1759261790674,0.2,208.42,208.41,75.7056983]
[1759261790867,0.1,208.44,208.42,26.72103651]
[1759261791176,0.1,208.44,208.43,48.27991715]
[1759261791372,0.2,208.48,208.43,48.27991715]
[1759261791373,0.2,208.48,208.45,20.8]
[1759261791587,0.2,208.48,208.45,55.2]
[1759261792083,0.2,208.48,208.45,59.9973135]
[1759261792286,0.2,208.48,208.45,60.13947507]
[1759261792486,0.2,208.48,208.46,13.87991715]
[1759261792989,0.79,208.54,208.5,13.59559401]
[1759261793186,0.1,208.54,208.51,34.4]
[1759261793380,0.72,208.53,208.51,34.4]
[1759261793781,0.72,208.52,208.5,13.59559401]
[1759261793982,0.72,208.52,208.51,34.4]
[1759261794188,0.72,208.51,208.49,20.8]
[1759261794390,0.72,208.5,208.48,20.8]
[1759261794690,0.72,208.5,208.49,34.42]
[1759261795284,0.72,208.5,208.44,0.28432314]
[1759261795490,0.72,208.5,208.45,55.32]
[1759261795874,0.72,208.49,208.45,55.32]
[1759261796389,0.1,208.54,208.45,55.32]
[1759261796699,0.72,208.48,208.45,55.32]
[1759261796997,0.72,208.5,208.45,55.32]
[1759261797171,0.72,208.49,208.45,55.32]
[1759261797376,0.72,208.49,208.45,60.11730396]
[1759261798391,4.79547307,208.53,208.45,60.11730396]
[1759261798580,0.72,208.52,208.45,60.11730396]
[1759261798778,0.72,208.51,208.45,60.11730396]
[1759261799094,1.75248683,208.54,208.49,20.8]
[1759261799095,0.1,208.54,208.49,20.8]
[1759261799395,0.1,208.54,208.5,34.5]
[1759261799978,0.1,208.54,208.51,13.87991715]
[1759261800391,0.1,208.54,208.52,34.52]
[1759261800606,0.72,208.53,208.52,34.52]
[1759261800978,0.1,208.54,208.52,34.52]
[1759261801221,0.1,208.54,208.52,39.31569414]
[1759261801903,0.82,208.54,208.52,34.52]
[1759261802198,0.1,208.54,208.53,34.56]
[1759261804299,0.82,208.54,208.53,34.56]
[1759261804509,0.82,208.54,208.48,11.99141777]
[1759261804510,5.61525683,208.54,208.41,29.33663023]
[1759261804713,0.72,208.53,208.44,13.59559401]
[1759261804911,0.72,208.52,208.47,20.8]
[1759261805082,0.72,208.51,208.48,34.64]
[1759261805401,0.72,208.5,208.43,19.19834985]
[1759261805590,0.72,208.49,208.44,48.23559401]
[1759261805904,0.72,208.49,208.42,4.7979886]
[1759261805905,0.72,208.48,208.42,13.59559401]
[1759261806103,0.72,208.47,208.43,34.64]
[1759261806402,4.79593304,208.51,208.44,18.39300179]
[1759261806586,0.72,208.5,208.45,34.62]
[1759261806793,0.72,208.49,208.45,34.62]
[1759261806992,0.72,208.48,208.46,34.62]
[1759261807191,0.72,208.47,208.46,34.62]
[1759261807393,4.79593304,208.51,208.46,34.62]
[1759261807578,0.72,208.53,208.46,34.62]
[1759261807781,0.1,208.54,208.47,13.87991715]
[1759261807992,0.1,208.54,208.45,20.8]
[1759261807993,0.1,208.54,208.49,13.87991715]
[1759261808205,0.1,208.54,208.5,34.84]
[1759261808609,0.1,208.54,208.51,4.79593304]
[1759261808898,0.1,208.54,208.52,34.84]
[1759261809289,4.89528816,208.54,208.49,34.67991715]
[1759261809494,0.72,208.53,208.5,34.84]
[1759261809692,0.72,208.52,208.5,34.84]
[1759261809894,0.72,208.51,208.5,34.84]
[1759261810108,0.72,208.51,208.49,20.8]
[1759261810306,2.57571732,208.51,208.39,13.59559401]
[1759261810511,2.57571732,208.49,208.41,13.59559401]
[1759261810805,5.51662317,208.48,208.42,34.82]
[1759261811213,5.51662317,208.48,208.41,13.59559401]
[1759261811398,2.57571732,208.45,208.37,42.21914498]
[1759261811599,0.72,208.44,208.38,34.82]
[1759261811798,0.72,208.44,208.37,37.42]
[1759261811799,0.72,208.43,208.37,37.42]
[1759261812017,3.29571732,208.42,208.37,37.42]
[1759261812314,37.58818111,208.48,208.38,34.82]
[1759261812315,3.29571732,208.41,208.38,34.82]
[1759261812624,4.79869475,208.39,208.38,34.82]
[1759261812791,5.51869475,208.39,208.38,34.82]
[1759261812994,0.72,208.39,208.38,34.82]
[1759261813192,0.72,208.47,208.41,20.8]
[1759261813414,0.72,208.49,208.42,34.82]
[1759261813647,0.72,208.48,208.41,20.8]
[1759261813845,0.72,208.47,208.42,35.08]
[1759261814313,0.72,208.46,208.44,2.57769507]
[1759261814512,2.57769507,208.49,208.43,2.57769507]
[1759261814721,4.79685326,208.47,208.44,35.06]
[1759261814945,0.72,208.46,208.44,35.06]
[1759261815420,0.72,208.45,208.41,20.8]
[1759261815618,0.72,208.44,208.42,35.04]
[1759261815934,2.57769507,208.45,208.43,35.04]
[1759261816109,4.79685326,208.47,208.44,35.04]
[1759261816312,5.51685326,208.47,208.44,35.04]
[1759261816525,0.72,208.46,208.44,35.04]
[1759261817016,4.79663004,208.48,208.44,37.61769507]
[1759261817221,0.72,208.47,208.44,37.61769507]
[1759261818036,0.72,208.47,208.44,35.04]
[1759261819559,5.46640788,208.49,208.44,37.61769507]
[1759261820039,0.67,208.48,208.44,35.04]
[1759261820211,0.67,208.47,208.44,35.04]
[1759261820416,19.36508573,208.49,208.43,81.67769507]
[1759261820610,2.57769507,208.46,208.44,34.98]
[1759261821129,0.67,208.52,208.45,2.57769507]
[1759261821334,0.67,208.52,208.48,2.57769507]
[1759261821539,16.78418504,208.53,208.49,34.98]
[1759261821836,0.67,208.52,208.49,34.98]
[1759261822038,0.67,208.51,208.46,2.57769507]
[1759261822241,0.67,208.5,208.47,34.96]
[1759261822542,0.67,208.49,208.48,34.98]
[1759261823037,5.46639311,208.49,208.48,34.98]
[1759261823414,5.50615247,208.51,208.48,34.98]
[1759261823836,0.71,208.5,208.48,34.98]
[1759261824046,0.71,208.53,208.49,39.97769507]
[1759261824212,0.1,208.54,208.51,2.57769507]
[1759261824413,0.81,208.54,208.52,34.94]
[1759261824831,0.1,208.54,208.52,34.94]
[1759261825139,5.60533906,208.54,208.52,34.94]
[1759261825743,0.71,208.53,208.52,34.94]
[1759261825925,4.89533906,208.54,208.52,34.94]
[1759261826123,5.60533906,208.54,208.52,34.94]
[1759261826632,4.89533906,208.54,208.52,34.94]
[1759261826932,5.60533906,208.54,208.52,34.94]
[1759261827525,0.1,208.54,208.52,34.94]
[1759261830329,5.60524538,208.54,208.52,34.94]
[1759261830525,0.71,208.53,208.52,34.94]
[1759261831235,0.71,208.53,208.52,35.08]
[1759261831432,17.49415575,208.53,208.49,37.4]
[1759261831742,0.71,208.52,208.5,35.06]
[1759261832242,16.78415575,208.53,208.5,35.06]
[1759261832440,0.71,208.52,208.5,35.06]
[1759261833346,4.79547307,208.53,208.5,35.06]
[1759261833749,4.89526706,208.54,208.5,35.06]
[1759261834439,0.1,208.54,208.51,2.57769507]
[1759261834634,0.1,208.54,208.52,37.59769507]
[1759261834824,0.1,208.54,208.53,35.02]
[1759261835821,5.60524311,208.54,208.53,35.0]
[1759261836434,5.60524311,208.54,208.49,37.4]
[1759261836435,20.17104597,208.54,208.49,37.4]
[1759261836646,3.28769507,208.53,208.5,34.98]
[1759261836849,2.57769507,208.52,208.5,34.98]
[1759261837146,16.8833509,208.54,208.5,34.98]
[1759261837336,4.89524311,208.54,208.5,34.98]
[1759261837532,4.89524311,208.54,208.5,37.55769507]
[1759261837945,5.60524311,208.54,208.5,34.98]
[1759261838446,4.89524311,208.54,208.5,34.98]
[1759261838652,5.60524311,208.54,208.5,34.98]
[1759261839037,5.6052997,208.54,208.5,34.98]
[1759261839352,0.71,208.53,208.49,37.4]
[1759261839542,4.79570305,208.52,208.5,35.02]
[1759261839735,4.79570305,208.52,208.49,37.4]
[1759261839935,0.1,208.54,208.51,35.02]
[1759261840533,4.89535556,208.54,208.51,35.02]
[1759261840750,0.71,208.53,208.52,35.02]
[1759261841252,0.71,208.53,208.52,35.0]
[1759261841634,5.50547307,208.53,208.52,35.0]
[1759261841864,17.49415575,208.53,208.49,37.4]
[1759261842064,0.71,208.52,208.5,35.0]
[1759261842366,0.71,208.52,208.51,35.0]
[1759261842536,16.78415575,208.53,208.51,35.0]
[1759261842732,17.49415575,208.53,208.51,35.0]
[1759261843162,16.78415575,208.53,208.49,37.4]
[1759261843359,3.28769507,208.52,208.49,37.4]
[1759261843561,7.37385813,208.5,208.49,37.4]
[1759261843765,8.08385813,208.5,208.49,72.38]
[1759261845249,5.50616306,208.5,208.49,72.38]
[1759261845753,8.08385813,208.5,208.49,72.38]
[1759261846057,4.79547307,208.53,208.49,72.38]
[1759261846366,0.71,208.52,208.49,72.38]
[1759261846548,3.28769507,208.51,208.49,72.38]
[1759261846749,0.71,208.5,208.49,72.38]
[1759261847864,0.71,208.5,208.49,37.4]
[1759261848058,4.79616306,208.5,208.49,72.34]
[1759261849274,5.50616306,208.5,208.49,72.36]
[1759261849447,4.79588845,208.52,208.49,72.36]
[1759261849648,0.71,208.51,208.49,72.36]
[1759261849850,16.78514607,208.52,208.49,72.36]
[1759261850070,4.79616306,208.5,208.49,72.36]
[1759261850268,5.50616306,208.5,208.49,37.4]
[1759261850460,8.08385813,208.5,208.49,72.32]
[1759261850966,8.08385813,208.5,208.49,37.4]
[1759261851165,8.08385813,208.5,208.49,72.32]
[1759261853771,5.50616306,208.5,208.49,72.32]
[1759261854162,4.79616306,208.5,208.49,72.32]
[1759261855677,4.79616306,208.5,208.49,72.28]
[1759261855980,11.98925762,208.52,208.49,74.85769507]
[1759261855981,4.79581017,208.52,208.49,74.85769507]
[1759261856172,4.79547307,208.53,208.49,72.28]
[1759261856377,4.79547307,208.53,208.5,2.57769507]
[1759261856685,4.79547307,208.53,208.51,34.84]
[1759261857256,0.1,208.54,208.51,34.84]
[1759261858160,0.1,208.54,208.53,2.57769507]
[1759261858365,0.1,208.54,208.53,37.39769507]
[1759261859158,0.1,208.54,208.53,72.07761222]
[1759261860161,0.1,208.54,208.53,74.29539022]
[1759261860381,0.1,208.54,208.53,76.87308529]
[1759261860885,0.1,208.59,208.58,0.28432314]
[1759261861099,0.1,208.59,208.58,51.31761222]
[1759261861269,0.1,208.59,208.58,51.33761222]
[1759261862296,0.1,208.59,208.58,70.86739349]
[1759261864284,0.1,208.59,208.58,69.93631217]
[1759261864482,0.1,208.69,208.64,13.59559401]
[1759261864665,0.1,208.69,208.68,1.64661375]
[1759261864873,0.1,208.69,208.68,73.92661375]
[1759261867094,0.1,208.69,208.68,87.8065309]
[1759261867386,0.1,208.69,208.68,92.59855696]
[1759261868108,0.1,208.75,208.69,13.87991715]
[1759261868396,0.1,208.75,208.74,1.64661375]
[1759261868603,0.1,208.75,208.74,36.50661375]
[1759261868965,0.82,208.75,208.74,1.64661375]
[1759261869171,0.82,208.75,208.74,36.48661375]
[1759261869566,0.1,208.75,208.74,1.64661375]
[1759261869772,0.82,208.75,208.69,13.87991715]
[1759261869973,0.1,208.75,208.71,13.87991715]
[1759261870189,0.1,208.75,208.74,1.64661375]
[1759261870384,4.89041916,208.75,208.74,34.82]
[1759261871185,0.1,208.75,208.74,36.46661375]
[1759261871585,0.1,208.75,208.74,34.82]
[1759261871793,5.61041916,208.75,208.74,34.82]
[1759261872101,0.82,208.75,208.74,34.82]
[1759261872672,5.61041916,208.75,208.73,1.64661375]
[1759261872892,4.89041916,208.75,208.74,34.8]
[1759261873195,4.89041916,208.75,208.68,58.2]
[1759261873371,1.64661375,208.73,208.69,34.8]
[1759261873575,0.72,208.72,208.69,34.8]
[1759261873779,0.72,208.71,208.69,34.8]
[1759261874081,0.72,208.7,208.69,34.8]
[1759261874591,5.51156684,208.7,208.69,34.8]
[1759261874795,5.51156684,208.7,208.68,37.4]
[1759261875002,4.79118704,208.72,208.69,34.78]
[1759261875182,4.79118704,208.72,208.7,34.78]
[1759261875378,0.72,208.71,208.7,34.78]
[1759261875782,4.79118704,208.72,208.7,34.78]
[1759261876084,4.79088807,208.73,208.7,34.78]
[1759261876307,4.79088807,208.73,208.7,36.42661375]
[1759261876484,5.51075837,208.74,208.71,1.64661375]
[1759261876798,4.79075837,208.74,208.72,34.78]
[1759261877004,5.51075837,208.74,208.72,34.78]
[1759261878084,0.67,208.73,208.69,0.28432314]
[1759261878279,0.67,208.72,208.7,34.78]
[1759261878491,0.67,208.71,208.7,34.78]
[1759261878879,5.46133726,208.71,208.7,34.78]
[1759261879287,4.79117793,208.72,208.7,34.78]
[1759261879490,4.29117793,208.72,208.7,34.78]
[1759261880399,4.79084392,208.74,208.7,34.78]
[1759261880598,4.89043321,208.75,208.7,34.78]
[1759261880800,4.89043321,208.75,208.71,13.87991715]
[1759261880801,4.89047418,208.75,208.71,13.87991715]
[1759261881000,0.1,208.75,208.72,34.74]
[1759261882292,4.89042843,208.75,208.73,34.74]
[1759261882688,0.1,208.75,208.73,34.74]
[1759261883309,0.79,208.75,208.73,34.74]
[1759261883603,0.1,208.75,208.73,34.74]
[1759261885102,4.89042178,208.75,208.73,34.74]
[1759261885496,0.1,208.75,208.73,34.74]
[1759261885892,0.1,208.75,208.73,39.53087099]
[1759261886310,0.1,208.75,208.73,34.74]
[1759261887684,4.89050526,208.75,208.73,34.74]
[1759261887891,0.69,208.74,208.73,34.74]
[1759261888288,0.69,208.74,208.69,20.94216157]
[1759261888511,0.69,208.73,208.7,34.66]
[1759261888691,0.69,208.72,208.7,34.66]
[1759261888891,0.69,208.71,208.7,34.66]
[1759261889304,5.48133726,208.71,208.7,34.66]
[1759261890333,1.64551095,208.73,208.7,34.66]
[1759261890495,0.69,208.71,208.65,0.28432314]
[1759261890696,0.69,208.7,208.69,34.66]
[1759261891317,5.48156684,208.7,208.69,34.66]
[1759261892530,0.69,208.72,208.69,34.66]
[1759261892693,0.69,208.71,208.69,34.66]
[1759261893417,4.7911077,208.72,208.69,34.66]
[1759261893624,5.4811077,208.72,208.69,34.66]
[1759261893807,0.69,208.72,208.69,34.66]
[1759261894327,4.79064865,208.74,208.69,34.66]
[1759261894328,0.69,208.71,208.69,34.66]
[1759261894834,0.69,208.7,208.6,49.34422405]
[1759261895002,1.64551095,208.71,208.69,34.6]
[1759261895334,20.9,208.75,208.69,34.6]
[1759261895504,1.64551095,208.73,208.69,34.6]
[1759261896320,0.69,208.72,208.69,34.6]
[1759261896816,0.69,208.71,208.69,34.6]
[1759261896994,0.69,208.73,208.69,34.6]
[1759261897196,0.69,208.72,208.69,34.6]
[1759261897407,5.48118589,208.72,208.69,34.6]
[1759261897839,4.79118589,208.72,208.69,34.6]
[1759261898005,5.48118589,208.72,208.69,34.6]
[1759261899102,0.69,208.71,208.69,34.6]
[1759261899307,5.48156684,208.7,208.69,34.6]
[1759261899502,5.48156684,208.7,208.69,34.7]
[1759261899706,7.12707779,208.7,208.61,13.59559401]
[1759261899917,2.33551095,208.69,208.61,13.59559401]
[1759261900121,2.33551095,208.69,208.68,72.1]
[1759261900526,0.69,208.69,208.68,37.4]
[1759261900699,2.33551095,208.69,208.68,72.1]
[1759261901026,4.79156684,208.7,208.68,72.1]
[1759261901027,6.43707779,208.7,208.68,72.1]
[1759261901222,5.48156684,208.7,208.68,72.1]
[1759261901728,13.62328021,208.72,208.68,72.1]
[1759261901729,4.7911077,208.72,208.68,72.1]
[1759261902048,5.4811077,208.72,208.68,72.1]
[1759261902325,0.69,208.71,208.68,72.1]
[1759261903524,4.7911077,208.72,208.68,72.1]
[1759261904311,0.69,208.71,208.68,72.1]
[1759261905527,5.48135318,208.71,208.68,72.1]
[1759261906530,5.48135318,208.71,208.68,151.2]
[1759261907226,1.64551095,208.69,208.68,37.4]
[1759261907417,5.48135318,208.71,208.68,72.08]
[1759261907616,0.69,208.7,208.68,72.08]
[1759261907802,6.43686413,208.71,208.68,72.08]
[1759261907803,0.69,208.69,208.68,72.08]
[1759261908225,2.33551095,208.69,208.68,72.08]
[1759261909009,17.45969633,208.71,208.68,72.08]
[1759261909208,5.48135318,208.71,208.68,72.08]
[1759261909417,4.79135318,208.71,208.68,72.08]
[1759261910819,5.48135318,208.71,208.68,72.08]
[1759261911221,4.79135318,208.71,208.68,72.08]
[1759261911534,5.48135318,208.71,208.68,72.08]
[1759261912525,5.48135318,208.71,208.68,151.18]
[1759261913433,4.79135318,208.71,208.68,151.18]
[1759261914132,18.41442871,208.72,208.68,151.18]
[1759261914672,0.68,208.71,208.69,34.54]
[1759261914930,2.32551095,208.71,208.69,34.54]
[1759261915139,0.68,208.7,208.69,34.54]
[1759261915736,2.32551095,208.7,208.68,37.4]
[1759261916030,11.97781006,208.72,208.69,34.54]
[1759261916341,11.97781006,208.72,208.7,34.54]
[1759261916536,0.68,208.71,208.7,34.54]
[1759261917313,2.32551095,208.71,208.7,34.54]
[1759261917520,2.32551095,208.71,208.68,37.4]
[1759261917727,1.64551095,208.69,208.68,37.4]
[1759261918036,27.91730739,208.69,208.68,37.4]
[1759261918232,39.8967985,208.69,208.58,14.73545775]
[1759261918418,0.68,208.68,208.65,37.36]
[1759261918730,0.68,208.67,208.66,34.5]
[1759261919307,0.68,208.67,208.66,35.0]
[1759261919513,2.32551095,208.67,208.66,35.0]
[1759261920423,7.11776666,208.67,208.66,35.0]
[1759261923025,7.11776666,208.67,208.66,34.5]
[1759261923719,13.69981046,208.67,208.65,37.36]
[1759261923925,13.69981046,208.67,208.61,37.38]
[1759261923926,20.8,208.64,208.61,37.38]
[1759261924127,1.64551095,208.62,208.61,37.38]
[1759261924309,4.79317451,208.63,208.61,71.84]
[1759261925032,2.32551095,208.62,208.61,37.38]
[1759261925237,2.32551095,208.62,208.61,71.84]
[1759261925918,2.32551095,208.62,208.61,71.86]
[1759261926123,7.11891522,208.62,208.61,71.86]
[1759261926420,8.04816894,208.62,208.61,37.38]
[1759261926628,8.04816894,208.62,208.61,71.84]
[1759261930539,5.47340427,208.62,208.61,71.84]
[1759261930730,8.04816894,208.62,208.61,71.84]
[1759261931235,20.8,208.59,208.58,37.38]
[1759261931434,20.8,208.58,208.54,37.38]
[1759261931632,20.8,208.58,208.48,0.2]
[1759261931633,2.57476467,208.55,208.52,37.38]
[1759261931932,23.37476467,208.53,208.52,37.38]
[1759261932142,24.05476467,208.53,208.52,71.8]
[1759261932639,2.57476467,208.53,208.52,71.8]
[1759261932834,8.05023774,208.53,208.52,71.8]
[1759261933039,28.85023774,208.53,208.52,71.8]
[1759261933425,25.59547307,208.53,208.52,71.8]
[1759261933628,28.17023774,208.53,208.52,71.8]
[1759261933819,25.59547307,208.53,208.52,71.8]
[1759261934019,23.97196459,208.58,208.52,71.8]
[1759261934020,2.57476467,208.56,208.52,71.8]
[1759261934825,7.36862852,208.6,208.52,76.59563106]
[1759261935145,5.47386385,208.6,208.52,76.59563106]
[1759261935447,2.57476467,208.57,208.52,71.8]
[1759261936546,2.57476467,208.58,208.52,76.59565831]
[1759261936733,2.57476467,208.58,208.52,71.8]
[1759261936924,4.79455338,208.57,208.52,71.8]
[1759261939443,7.36931805,208.57,208.52,71.8]
[1759261940222,4.79455338,208.57,208.52,71.8]
[1759261940744,7.36905001,208.59,208.52,76.59568682]
[1759261941045,4.79428534,208.59,208.52,76.59568682]
[1759261941230,2.57476467,208.6,208.52,76.59568682]
[1759261941431,7.36863413,208.6,208.52,76.59568682]
[1759261941846,7.36863413,208.6,208.52,71.8]
[1759261942045,2.57476467,208.53,208.52,37.38]
[1759261942246,21.51,208.53,208.52,37.38]
[1759261942545,21.51,208.53,208.52,71.86]
[1759261942746,3.28476467,208.53,208.52,71.86]
[1759261943323,8.08023774,208.53,208.52,71.86]
[1759261943634,5.50547307,208.53,208.52,71.86]
[1759261943828,8.08023774,208.53,208.52,71.86]
[1759261946338,0.2891,208.53,208.52,71.86]
[1759261946530,5.08457307,208.53,208.52,71.86]
[1759261947427,8.34933774,208.53,208.52,71.84]
[1759261947638,7.65933774,208.53,208.52,71.84]
[1759261948443,5.08457307,208.53,208.52,71.84]
[1759261949459,7.65933774,208.53,208.52,71.84]
[1759261949665,5.08457307,208.53,208.52,71.84]
[1759261949866,7.65933774,208.53,208.52,71.84]
[1759261950444,8.34933774,208.53,208.52,71.84]
[1759261951061,44.31538578,208.53,208.48,37.6]
[1759261951250,2.57476467,208.49,208.48,37.6]
[1759261951434,7.37115778,208.49,208.48,72.04]
[1759261952341,4.79639311,208.49,208.48,72.04]
[1759261952655,7.37085007,208.51,208.48,72.04]
[1759261953650,4.7960854,208.51,208.48,72.04]
[1759261953854,2.57476467,208.5,208.48,72.04]
[1759261954032,7.37085007,208.51,208.48,72.04]
[1759261954234,4.7960854,208.51,208.48,72.04]
[1759261955841,7.65954122,208.53,208.48,72.04]
[1759261956148,8.34954122,208.53,208.48,72.04]
[1759261956462,3.26476467,208.52,208.48,72.04]
[1759261956644,17.07345923,208.53,208.48,72.04]
[1759261956645,0.2891,208.53,208.48,72.04]
[1759261956849,0.2891,208.53,208.48,76.83660045]
[1759261957891,0.2891,208.53,208.49,0.28432314]
[1759261958171,0.2891,208.53,208.5,34.42]
[1759261959141,0.2891,208.53,208.51,4.79593304]
[1759261959341,0.2891,208.53,208.52,34.4]
[1759261963759,0.2891,208.53,208.52,34.38]
[1759261964071,0.2891,208.53,208.52,39.17570305]
[1759261964371,0.2891,208.53,208.52,34.38]
[1759261965667,0.2891,208.53,208.52,39.17570305]
[1759261965869,0.2891,208.53,208.52,39.46002619]
[1759261967658,0.2891,208.53,208.52,34.38]
[1759261967860,0.2891,208.53,208.5,0.28432314]
[1759261968160,0.69,208.52,208.48,37.6]
[1759261968464,7.65936985,208.53,208.49,34.32]